bitfinex/quotes_ETHUSD_20241120
["timestamp","ask_amount","ask_price","bid_price","bid_amount"]
[1732120703852,0.3165,3074.8,3073.5,0.62754718]
[1732120704160,0.3165,3074.8,3073.6,0.45572141]
[1732120704374,0.3165,3074.8,3073.7,0.02542587]
[1732120704535,0.31036675,3074.8,3073.7,0.02542587]
[1732120704733,0.31036675,3074.8,3073.8,0.3228]
[1732120704921,0.04065284,3076.5,3074.0,0.879]
[1732120705122,0.02,3076.3,3073.6,5.68613354]
[1732120705328,0.01,3075.6,3073.4,3.0]
[1732120705668,0.01,3075.6,3073.1,2.20949943]
[1732120705669,3.25213,3075.0,3073.1,0.18238123]
[1732120705964,0.01,3075.3,3072.4,2.9161182]
[1732120705965,0.04067078,3074.9,3072.8,0.1265338]
[1732120706163,0.07893525,3074.9,3072.8,0.1265338]
[1732120706467,0.41202877,3074.9,3072.9,0.02546156]
[1732120706622,0.07893525,3074.9,3072.9,0.02546156]
[1732120707678,0.35106588,3074.8,3072.9,0.02546156]
[1732120708282,0.3104,3074.6,3072.8,0.15198484]
[1732120708479,0.3104,3074.4,3072.8,0.15198484]
[1732120708778,0.3113,3074.2,3072.8,0.15198484]
[1732120709082,0.35196814,3074.2,3072.9,0.9453]
[1732120709367,0.3113,3074.2,3073.2,3.0]
[1732120709665,0.3113,3074.2,3073.3,0.32544147]
[1732120709876,0.3113,3074.2,3073.5,3.0]
[1732120710084,0.3113,3074.2,3073.3,0.02544147]
[1732120710435,0.3113,3075.7,3073.1,0.02544054]
[1732120710633,0.3113,3075.7,3073.7,3.0]
[1732120710834,0.03815045,3075.6,3073.8,3.0]
[1732120711077,0.03815045,3075.6,3073.9,0.3]
[1732120711078,0.3113,3075.5,3073.9,0.3]
[1732120711397,0.3113,3075.3,3074.0,3.0]
[1732120711555,0.3113,3075.3,3074.1,0.3]
[1732120711781,0.3113,3075.3,3074.2,0.02543095]
[1732120712080,0.3113,3075.3,3073.7,0.8858]
[1732120712081,0.03798183,3075.2,3073.8,0.57542187]
[1732120712292,0.03798183,3075.2,3074.4,3.9518]
[1732120712440,0.3113,3076.6,3074.5,0.42059121]
[1732120712633,0.3113,3076.4,3074.5,0.02541121]
[1732120712868,0.3113,3076.2,3074.5,0.02541121]
[1732120713073,0.04064233,3076.1,3074.5,0.02541121]
[1732120713487,0.3113,3076.0,3074.5,0.02541121]
[1732120713689,0.01,3077.0,3073.9,4.35141213]
[1732120713690,0.3113,3075.8,3074.0,0.95131333]
[1732120713834,0.04064855,3075.7,3074.0,1.67744636]
[1732120714035,0.3113,3075.8,3074.0,0.95131333]
[1732120714859,0.3113,3075.8,3074.1,0.55]
[1732120715072,0.3113,3075.8,3074.2,0.02540462]
[1732120715371,0.3113,3075.8,3074.3,0.02540462]
[1732120715672,0.3113,3075.8,3074.5,0.55]
[1732120715979,0.3113,3077.5,3074.8,0.55]
[1732120716194,0.3113,3077.3,3074.9,0.02539051]
[1732120716482,0.02,3077.8,3074.9,0.02539051]
[1732120716483,0.3113,3077.1,3074.9,0.02539051]
[1732120716771,0.3113,3076.9,3074.9,0.02539051]
[1732120717069,0.3113,3076.9,3075.2,0.55]
[1732120717284,0.3113,3076.9,3075.3,0.47556987]
[1732120717575,0.3113,3076.9,3075.6,0.55]
[1732120717818,0.3113,3076.9,3075.5,0.9519]
[1732120717819,0.3113,3076.9,3075.7,0.02537092]
[1732120721764,0.3113,3078.6,3075.9,0.55]
[1732120721968,0.3113,3078.4,3076.1,0.55]
[1732120722182,0.3113,3078.2,3076.2,0.95834258]
[1732120722407,0.3113,3078.2,3076.2,2.30975471]
[1732120722710,0.3113,3078.2,3076.3,4.90141213]
[1732120722919,0.3113,3078.2,3076.5,0.56]
[1732120723145,0.3113,3078.2,3076.7,0.933]
[1732120723267,0.3113,3078.2,3076.8,3.57533794]
[1732120723467,0.3113,3078.2,3076.8,0.02533794]
[1732120724315,0.3113,3078.2,3076.8,1.92675007]
[1732120724465,0.3113,3078.2,3076.9,3.78868683]
[1732120724666,0.3113,3078.2,3076.9,0.78868683]
[1732120725016,0.3113,3078.2,3076.9,0.02534889]
[1732120725805,0.3113,3078.2,3076.3,3.16415007]
[1732120725806,0.3113,3078.2,3076.4,0.03534886]
[1732120725964,0.3113,3078.2,3076.5,0.55]
[1732120726168,0.3113,3078.2,3076.8,0.55]
[1732120726481,0.3113,3078.2,3076.9,0.02533295]
[1732120726893,0.3113,3078.2,3077.4,3.0]
[1732120727105,0.3113,3078.2,3077.5,0.32533116]
[1732120727423,0.3113,3078.2,3077.5,0.02533116]
[1732120727712,0.3113,3080.0,3077.5,0.02533116]
[1732120728010,0.3113,3079.8,3077.5,0.02533116]
[1732120728309,0.38520337,3079.7,3077.5,0.02533116]
[1732120728679,0.3113,3079.7,3077.7,0.02]
[1732120728866,0.3113,3079.7,3077.9,0.56]
[1732120729067,0.3113,3079.7,3078.1,0.9506]
[1732120729310,0.3113,3079.7,3078.2,0.42289555]
[1732120729887,0.3113,3079.7,3078.2,0.39758978]
[1732120730074,0.35189929,3079.6,3078.0,3.0]
[1732120730474,0.35189929,3079.6,3077.9,5.35]
[1732120731021,0.3113,3079.3,3076.6,0.9454]
[1732120731177,0.3113,3079.1,3076.7,0.02534099]
[1732120731375,0.38491603,3079.0,3076.7,0.02534099]
[1732120732580,0.3443056,3079.0,3076.6,0.9454]
[1732120732790,0.38491763,3079.0,3076.7,0.02534412]
[1732120736320,0.3113,3078.9,3076.7,0.02534412]
[1732120736504,0.3213,3078.8,3076.2,0.9004]
[1732120736709,0.3113,3078.7,3076.6,0.02534507]
[1732120736931,0.3113,3078.5,3076.6,0.02534507]
[1732120737089,0.3113,3078.3,3076.4,0.02535945]
[1732120737282,0.3113,3078.3,3076.1,5.35]
[1732120737283,0.3113,3078.1,3076.1,5.35]
[1732120737525,0.3113,3077.9,3075.7,0.02536789]
[1732120737709,0.3113,3077.7,3075.7,0.02536789]
[1732120738031,0.38426848,3077.6,3075.7,0.02536789]
[1732120738388,0.38426848,3077.6,3075.4,0.9004]
[1732120738389,0.38426848,3077.6,3075.5,0.02536964]
[1732120739020,0.35192481,3077.6,3076.1,3.0]
[1732120739232,0.03229874,3077.5,3075.5,0.02537828]
[1732120739441,0.37942767,3077.5,3075.5,0.02537828]
[1732120740246,0.37942767,3077.5,3075.1,0.19049895]
[1732120740624,0.37942767,3077.5,3075.1,0.02537741]
[1732120740833,0.3065,3077.4,3075.1,0.02537741]
[1732120741017,0.38058945,3077.3,3075.1,0.02537741]
[1732120741219,0.38058945,3077.3,3074.9,0.16672874]
[1732120741528,0.38058945,3077.3,3075.0,0.02538941]
[1732120741738,0.33995427,3077.3,3075.1,0.9528]
[1732120741924,0.35151524,3077.3,3075.2,0.03537479]
[1732120742104,0.01,3078.6,3075.2,0.03537479]
[1732120742105,0.04062431,3077.2,3075.3,0.23395869]
[1732120742457,0.34736221,3077.1,3075.4,0.02538306]
[1732120742603,0.3065,3076.9,3075.4,0.02538306]
[1732120742800,0.38780698,3076.8,3075.4,0.02538306]
[1732120743162,0.34717551,3076.8,3075.8,3.0]
[1732120743318,0.34717551,3076.8,3075.1,0.9528]
[1732120743319,0.34717551,3076.8,3075.9,0.02537703]
[1732120743501,0.34717551,3076.8,3075.1,0.9528]
[1732120743502,0.3065,3076.8,3075.2,0.02537709]
[1732120743708,0.04467563,3076.7,3075.2,4.92678922]
[1732120744027,0.3065,3076.8,3075.5,0.01]
[1732120744343,0.3065,3076.8,3075.6,0.95066075]
[1732120745502,0.3065,3076.8,3075.7,0.55]
[1732120745703,0.3065,3076.8,3075.9,0.55]
[1732120745897,0.02,3078.9,3076.0,0.02535822]
[1732120745898,0.3065,3078.2,3076.0,0.02535822]
[1732120746727,0.3065,3078.2,3076.2,0.55]
[1732120746931,0.3065,3078.2,3076.3,0.025346]
[1732120747148,0.3065,3078.2,3075.8,3.0]
[1732120747149,0.3065,3078.0,3075.8,0.02535148]
[1732120747434,0.3065,3077.8,3075.8,0.02535148]
[1732120747624,0.3065,3077.6,3075.9,0.0253652]
[1732120748617,0.3065,3077.6,3076.0,0.02535356]
[1732120749304,0.3065,3077.6,3075.6,0.19409516]
[1732120749499,0.01,3078.2,3075.6,0.19409516]
[1732120749500,0.3065,3077.4,3075.6,0.19409516]
[1732120749700,0.3065,3077.3,3075.6,0.19409516]
[1732120749939,0.3065,3077.3,3075.7,0.3228]
[1732120750145,0.3065,3077.3,3075.8,0.0253635]
[1732120750356,0.3065,3077.3,3076.2,0.3228]
[1732120750642,0.3065,3077.3,3076.3,0.02535359]
[1732120750846,0.3065,3077.3,3076.5,0.3228]
[1732120751161,0.3065,3077.3,3076.6,0.02535421]
[1732120751940,0.3065,3077.3,3076.2,0.3228]
[1732120752145,0.3065,3077.3,3076.6,0.3228]
[1732120752367,0.3065,3077.3,3076.7,0.02534699]
[1732120752650,0.01,3079.1,3076.7,0.02534699]
[1732120752651,0.3065,3078.8,3076.8,34.523056]
[1732120752812,0.3065,3078.8,3077.0,0.3228]
[1732120753011,0.3065,3078.8,3077.1,0.02532446]
[1732120753317,0.3065,3078.8,3077.4,0.3228]
[1732120753647,0.3065,3078.8,3077.5,0.02531489]
[1732120754112,0.3065,3078.8,3077.6,1.67421213]
[1732120754309,0.3065,3078.8,3078.0,0.3228]
[1732120754508,0.3065,3078.8,3078.1,0.02530272]
[1732120754860,0.3065,3080.5,3078.1,0.02530272]
[1732120755088,0.01,3081.2,3078.2,0.22905149]
[1732120755089,0.3065,3080.3,3078.2,0.22905149]
[1732120755262,0.3065,3080.3,3078.3,0.02529887]
[1732120755445,0.3065,3080.3,3078.3,1.376711]
[1732120755844,0.3065,3080.3,3078.4,1.35141213]
[1732120756187,0.3065,3080.3,3078.5,0.02529569]
[1732120756490,0.3065,3080.3,3078.5,1.37670782]
[1732120756644,0.3065,3080.3,3078.6,0.3403826]
[1732120756839,0.3065,3080.3,3078.7,0.02529225]
[1732120757574,0.3065,3080.3,3078.7,1.37670438]
[1732120757884,0.3065,3080.3,3078.8,1.35141213]
[1732120758180,0.3065,3080.3,3078.9,0.02528781]
[1732120759023,0.3065,3080.3,3079.0,1.35141213]
[1732120759143,0.3065,3080.3,3079.1,0.36566669]
[1732120759341,0.3065,3080.3,3079.1,0.02528488]
[1732120759745,0.3065,3080.3,3079.1,1.37669701]
[1732120759942,0.3065,3080.3,3079.2,1.35141213]
[1732120760152,0.3065,3080.3,3079.3,0.02527697]
[1732120760351,0.3065,3080.3,3079.3,1.3766891]
[1732120760680,0.3065,3080.3,3079.6,1.35141213]
[1732120760892,0.3065,3080.3,3079.7,1.37668391]
[1732120761117,0.05553156,3082.1,3080.0,1.35141213]
[1732120761118,0.3065,3082.0,3080.0,1.35141213]
[1732120761405,0.3065,3082.0,3080.4,1.35141213]
[1732120761638,0.3065,3082.0,3080.8,1.35141213]
[1732120761772,0.3065,3082.0,3080.9,0.0252374]
[1732120762376,0.3065,3082.0,3080.6,1.37664794]
[1732120762677,0.3065,3082.0,3080.7,0.34037661]
[1732120762886,0.3065,3082.0,3080.8,0.02524063]
[1732120763419,0.3065,3082.0,3080.8,1.37665276]
[1732120763710,0.3065,3082.0,3081.0,1.35141213]
[1732120763908,0.3065,3082.0,3081.1,0.02522797]
[1732120764712,0.3065,3082.0,3081.2,1.35141213]
[1732120765016,0.3065,3082.0,3081.3,1.60850574]
[1732120765211,0.3065,3082.0,3081.3,0.25709361]
[1732120765414,0.0149557,3082.1,3081.3,0.25709361]
[1732120765599,0.3065,3082.7,3081.5,1.35141213]
[1732120765914,0.3065,3082.7,3081.6,0.99373374]
[1732120766075,0.3065,3082.7,3081.3,0.23187401]
[1732120766076,0.3065,3082.7,3081.7,0.0252155]
[1732120767158,0.3065,3082.7,3081.8,0.02521557]
[1732120767296,0.3065,3082.7,3081.1,2.29351213]
[1732120767297,0.3065,3082.7,3081.2,0.575216]
[1732120767631,0.3065,3082.7,3081.2,2.35869116]
[1732120767850,0.3065,3082.7,3081.4,0.55]
[1732120768000,0.3065,3082.7,3081.5,0.02520916]
[1732120770233,0.3065,3082.7,3081.1,1.11295512]
[1732120770234,0.3065,3082.7,3081.2,0.02522143]
[1732120770595,0.2918,3082.5,3081.2,0.02522143]
[1732120771951,0.2918,3082.5,3081.3,0.34126028]
[1732120772159,0.2918,3082.5,3081.4,0.57521065]
[1732120772509,0.2918,3082.5,3081.7,0.8847]
[1732120772709,0.2918,3084.0,3081.8,25.54901289]
[1732120773011,0.2918,3084.0,3082.0,0.55]
[1732120773206,0.2918,3084.0,3082.1,0.02519099]
[1732120773704,0.2918,3084.0,3083.1,3.0]
[1732120773919,0.2918,3084.0,3082.2,0.8861]
[1732120773920,0.2918,3084.0,3083.2,0.02518413]
[1732120774166,0.2918,3084.0,3082.3,0.5751842]
[1732120774366,0.2918,3084.0,3082.5,0.55]
[1732120774700,0.2918,3084.0,3082.6,0.02517839]
[1732120776198,0.2918,3084.0,3082.6,0.36643867]
[1732120776491,0.2918,3084.0,3082.7,0.89126028]
[1732120776664,0.2918,3084.0,3082.9,0.9445]
[1732120776862,0.2918,3084.0,3083.0,0.57517263]
[1732120777283,0.1414895,3085.2,3083.2,0.55]
[1732120777453,0.1414895,3085.2,3083.3,0.02515693]
[1732120777873,0.1414895,3085.2,3084.2,3.0]
[1732120778569,0.1414895,3085.2,3083.3,0.02515693]
[1732120778905,0.04052109,3085.1,3083.3,0.02516225]
[1732120779068,0.1414895,3085.2,3083.3,0.02516225]
[1732120779726,0.04052365,3085.1,3083.3,0.02516225]
[1732120781129,0.01,3085.0,3082.6,0.02517751]
[1732120781267,0.04053345,3084.9,3082.6,0.69254035]
[1732120781673,3.24223,3084.3,3082.6,0.02517751]
[1732120781828,3.24266,3083.9,3081.9,0.16898974]
[1732120782012,3.28329669,3083.8,3082.0,0.02521346]
[1732120782194,3.24288,3083.7,3082.0,0.02521346]
[1732120782522,0.01,3084.2,3081.2,1.0969096]
[1732120782523,3.25215,3084.4,3081.9,0.34126028]
[1732120782720,0.04053975,3084.3,3082.0,0.02519956]
[1732120783384,0.04053975,3084.3,3082.7,3.0]
[1732120783580,3.25225,3084.3,3082.0,0.02519956]
[1732120783820,3.2425,3084.1,3081.3,0.575196]
[1732120784020,0.04054187,3084.0,3081.3,0.575196]
[1732120784329,0.04054187,3084.0,3081.4,0.52487367]
[1732120784479,3.28314187,3084.0,3081.5,0.02520986]
[1732120784680,0.04054187,3084.0,3081.5,0.34800986]
[1732120785228,3.24287,3083.7,3082.4,3.0]
[1732120785445,0.04054493,3083.6,3082.4,3.0]
[1732120785608,0.0405449,3083.7,3082.3,3.0]
[1732120785808,3.24315,3083.5,3081.6,0.02521926]
[1732120786022,0.04054885,3083.4,3081.6,0.02521926]
[1732120786336,0.04054885,3083.4,3081.6,0.02521784]
[1732120786547,0.32836988,3083.3,3081.6,0.02521784]
[1732120786743,0.32836988,3083.3,3080.8,0.02522704]
[1732120786744,0.01,3083.0,3080.8,0.02522704]
[1732120787038,0.05056003,3083.0,3080.9,0.02524013]
[1732120787252,0.04056003,3083.0,3080.9,0.02524013]
[1732120787399,0.05056003,3083.0,3080.9,0.02524013]
[1732120787898,3.29422003,3083.0,3080.7,0.02524007]
[1732120788107,0.329422,3082.9,3081.4,3.0]
[1732120788413,0.329422,3082.9,3080.7,0.02524007]
[1732120788414,0.04055605,3082.9,3080.7,0.02523217]
[1732120788737,0.04055605,3083.0,3081.0,0.3228]
[1732120788944,0.01,3083.6,3082.2,3.0]
[1732120788945,0.04055161,3083.6,3082.2,3.0]
[1732120789193,0.04055161,3083.6,3082.3,0.32521534]
[1732120789350,0.04055161,3083.6,3082.3,0.02521534]
[1732120789503,0.04055161,3083.6,3082.3,3.02521534]
[1732120789702,0.04054765,3084.0,3082.4,3.0]
[1732120789896,0.32068765,3084.0,3082.3,0.02521534]
[1732120790153,0.32068765,3084.0,3082.0,0.02520676]
[1732120790307,0.04054765,3084.0,3082.4,3.0]
[1732120790512,0.04054765,3084.0,3082.0,0.02520676]
[1732120790710,2.7814,3084.1,3082.0,0.02520676]
[1732120790941,0.04053939,3084.0,3082.0,0.02520676]
[1732120791145,0.28219394,3083.9,3082.6,3.0]
[1732120791312,0.04053799,3083.8,3082.6,3.0]
[1732120791498,0.04053799,3083.8,3082.0,0.02519605]
[1732120791838,0.32273597,3083.9,3082.6,3.0]
[1732120792051,0.32273597,3083.9,3082.0,0.02519605]
[1732120792505,0.32273597,3083.9,3082.6,3.0]
[1732120792705,0.32273597,3083.9,3082.7,0.0252028]
[1732120792706,0.04054137,3083.8,3082.7,0.0252028]
[1732120793178,0.04054137,3083.8,3082.0,0.02519683]
[1732120793332,0.28219394,3083.9,3082.0,0.02519683]
[1732120793534,0.28219394,3083.9,3082.6,3.0]
[1732120793732,0.28219394,3083.9,3082.7,0.325196]
[1732120794136,3.24153,3085.0,3082.7,0.325196]
[1732120794137,3.04053668,3084.9,3082.7,0.025196]
[1732120794375,0.05053668,3084.9,3082.7,0.025196]
[1732120794670,0.05053668,3084.9,3082.4,0.8869]
[1732120794671,0.32920467,3084.8,3082.8,0.02518686]
[1732120794984,0.04053339,3084.7,3082.8,0.02518686]
[1732120795740,0.04053339,3084.7,3082.5,0.02518921]
[1732120796538,0.01,3084.6,3082.5,0.02518921]
[1732120796744,0.37077663,3084.5,3082.5,0.02518921]
[1732120797660,0.04053929,3084.5,3082.5,0.02518921]
[1732120797993,0.04053562,3084.4,3082.5,0.02518921]
[1732120798687,0.04053562,3084.4,3082.4,0.17091957]
[1732120798852,3.24228,3084.3,3082.4,0.02519404]
[1732120799047,3.24228,3084.3,3081.8,2.0271182]
[1732120799048,3.0,3084.1,3082.2,0.16649317]
[1732120799248,0.04054336,3084.0,3082.3,0.02520679]
[1732120800398,3.28317336,3084.0,3082.4,3.0]
[1732120800598,3.28317336,3084.0,3082.3,0.02520679]
[1732120800599,0.30405434,3083.9,3082.3,0.02520679]
[1732120800812,0.04054335,3083.8,3082.3,0.02520679]
[1732120801406,0.04054335,3083.8,3081.7,3.57272427]
[1732120801407,0.04054335,3083.8,3081.9,6.40373709]
[1732120801573,0.04054335,3083.8,3082.0,0.0252178]
[1732120801759,0.04054335,3083.8,3082.0,4.37662993]
[1732120801971,0.04054335,3083.8,3082.0,0.0252178]
[1732120802259,3.24303,3083.6,3081.8,1.37662203]
[1732120802464,3.24318,3083.4,3081.9,1.35141213]
[1732120802701,3.24318,3083.4,3081.6,1.35141213]
[1732120802702,0.0405499,3083.3,3081.6,1.35141213]
[1732120802904,0.36892289,3083.3,3081.6,1.37663616]
[1732120803080,0.36892289,3083.3,3081.5,1.35141213]
[1732120803081,3.24367,3083.0,3081.5,1.35141213]
[1732120803414,0.324367,3082.9,3081.6,1.37664299]
[1732120803617,0.04055079,3083.4,3081.7,1.35141213]
[1732120803911,0.36890687,3083.4,3081.8,1.71700648]
[1732120804098,0.36890687,3083.4,3081.5,2.70282427]
[1732120804099,3.01,3083.3,3081.5,1.35141213]
[1732120804260,0.04055551,3083.2,3081.6,1.37664322]
[1732120804465,3.2427,3083.9,3082.1,1.35141213]
[1732120804664,3.2427,3083.9,3082.2,1.35141213]
[1732120804665,0.04054487,3083.8,3082.2,1.35141213]
[1732120804905,0.04054487,3083.8,3082.2,1.37662529]
[1732120805202,0.04054487,3083.8,3082.0,0.3228]
[1732120805203,3.24307,3083.5,3082.0,0.3228]
[1732120805403,3.28374416,3083.4,3081.9,4.35141213]
[1732120805630,3.28374416,3083.4,3081.8,4.35141213]
[1732120805631,3.24327,3083.3,3081.8,4.35141213]
[1732120805763,3.04055797,3083.2,3081.7,1.35141213]
[1732120805969,0.04055797,3083.2,3081.7,1.37664264]
[1732120806277,3.0,3083.6,3082.2,1.35141213]
[1732120806278,0.04055542,3083.6,3082.2,1.35141213]
[1732120806503,0.04055542,3083.6,3082.2,4.35141213]
[1732120806680,0.04055542,3083.6,3082.3,1.35141213]
[1732120807179,0.04055542,3083.6,3082.2,3.0]
[1732120807180,0.04055542,3083.6,3082.2,4.35141213]
[1732120807368,0.66989496,3083.6,3082.2,1.35141213]
[1732120807677,0.67989496,3083.6,3081.8,4.35141213]
[1732120807877,6.24324,3083.4,3081.9,4.35141213]
[1732120808082,3.0,3083.2,3081.9,1.35141213]
[1732120808305,3.0,3083.2,3081.7,1.35141213]
[1732120808306,0.04055661,3083.1,3081.7,1.35141213]
[1732120808907,0.04055661,3083.1,3081.5,1.67421213]
[1732120809074,6.24365,3083.0,3081.5,1.67421213]
[1732120809278,6.24365,3083.0,3081.3,1.35141213]
[1732120809279,0.0405595,3082.9,3081.3,1.35141213]
[1732120809489,0.0405595,3082.9,3080.6,6.84113094]
[1732120809490,3.24428,3082.4,3080.9,1.30141213]
[1732120809692,3.04056711,3082.3,3080.4,2.0271182]
[1732120809908,0.62848471,3082.2,3080.5,0.49824853]
[1732120810064,0.01,3082.9,3080.6,2.0271182]
[1732120810268,0.04056195,3082.7,3080.9,0.887]
[1732120810506,0.04055919,3082.7,3081.0,0.02523845]
[1732120810709,3.0,3083.0,3081.0,2.05235665]
[1732120810710,0.04055699,3082.9,3081.0,2.05235665]
[1732120810914,0.04055699,3082.9,3081.1,0.29393567]
[1732120811097,0.04055696,3083.2,3081.2,2.05235219]
[1732120811281,3.24371,3082.9,3081.2,3.0]
[1732120811467,0.36898656,3082.8,3081.3,0.35463447]
[1732120811669,0.04056041,3082.8,3081.1,0.02523094]
[1732120812319,0.36898145,3082.8,3081.1,0.02523094]
[1732120812886,3.0,3082.7,3080.6,0.34534463]
[1732120813075,0.70184646,3082.6,3080.7,0.42323446]
[1732120813271,0.70184646,3082.6,3080.6,0.02524674]
[1732120813683,0.04056531,3082.6,3080.6,0.02524674]
[1732120814097,0.0405594,3082.9,3080.6,0.02524674]
[1732120815221,0.01,3082.8,3080.6,0.02524674]
[1732120815387,3.24407,3082.6,3080.6,0.02524674]
[1732120815604,3.24464,3082.0,3080.2,0.9412]
[1732120815831,3.24464,3082.0,3080.2,0.96646234]
[1732120815832,0.04057113,3081.9,3080.2,0.96646234]
[1732120816036,0.32852111,3081.8,3080.2,0.96646234]
[1732120816217,3.01,3082.7,3080.2,0.96646222]
[1732120816425,3.04056583,3082.4,3080.2,0.96646222]
[1732120816598,0.04056583,3082.4,3080.2,0.96646222]
[1732120817439,0.04056251,3082.3,3080.2,0.96646222]
[1732120817603,0.04056334,3082.6,3080.2,1.28926222]
[1732120817802,0.04056284,3082.5,3080.2,1.28926222]
[1732120818422,3.24449,3082.2,3080.2,1.28926222]
[1732120818626,0.36501745,3082.1,3080.2,1.28926222]
[1732120818804,3.60961745,3082.1,3080.2,1.28926222]
[1732120819202,0.36501745,3082.1,3080.2,1.28926222]
[1732120819507,0.04056845,3082.1,3080.2,1.28926222]
[1732120819705,0.04056845,3082.0,3080.2,1.28926222]
[1732120820320,0.04057107,3082.3,3080.2,1.28926222]
[1732120820636,0.30405711,3082.2,3080.2,1.28926222]
[1732120820810,0.04056541,3082.1,3080.2,1.28926222]
[1732120821221,3.0,3082.0,3080.2,1.28926222]
[1732120821445,0.04057053,3081.9,3080.2,1.28926222]
[1732120822004,3.01,3082.3,3080.8,3.0]
[1732120822005,0.04057052,3082.3,3080.8,3.0]
[1732120822207,0.04057052,3082.3,3081.0,0.884]
[1732120822408,0.04057052,3082.3,3081.1,0.02524866]
[1732120823049,0.04056428,3082.9,3081.1,0.02524866]
[1732120823259,3.28428428,3082.9,3081.0,0.884]
[1732120823414,0.32942843,3082.8,3081.1,0.02524393]
[1732120823615,0.04056193,3082.7,3081.1,0.02524393]
[1732120824273,0.04055851,3082.6,3081.1,0.02524393]
[1732120824724,0.04055851,3082.6,3081.1,0.02523707]
[1732120825118,0.04055851,3082.6,3081.0,0.884]
[1732120825360,0.55,3082.5,3081.0,0.884]
[1732120825514,0.04056359,3082.4,3081.1,0.02524725]
[1732120825714,0.59056359,3082.5,3081.1,0.02524725]
[1732120825913,0.55,3082.8,3081.1,0.02524725]
[1732120826116,0.55,3082.6,3081.1,0.02524725]
[1732120826317,0.55,3082.4,3081.1,0.02524725]
[1732120826621,0.0405585,3082.3,3081.1,0.02524725]
[1732120827129,0.55,3082.2,3081.1,3.0]
[1732120827333,0.55,3082.0,3081.0,0.884]
[1732120829663,0.55,3083.0,3081.3,0.3237]
[1732120829873,0.55,3083.0,3080.5,3.0]
[1732120829874,0.650629,3083.3,3081.5,0.9169]
[1732120830174,0.01,3083.8,3081.7,0.9169]
[1732120830463,0.01,3083.5,3081.9,0.9169]
[1732120830695,0.01,3083.5,3081.1,1.37235943]
[1732120830696,3.24345,3083.2,3081.2,0.9169]
[1732120830992,0.36590278,3083.1,3081.4,1.2406]
[1732120831196,0.04055778,3083.1,3081.4,1.2406]
[1732120831901,0.55,3082.9,3081.4,1.26583067]
[1732120832056,3.0,3083.3,3081.4,1.26583067]
[1732120832057,0.55,3082.7,3081.4,1.26583067]
[1732120832262,0.0405553,3082.8,3081.6,0.3237]
[1732120832263,0.07077854,3082.8,3081.6,0.3237]
[1732120832510,0.55,3082.5,3081.6,0.3237]
[1732120832793,0.07063999,3082.4,3081.6,0.3237]
[1732120832994,0.07063999,3082.4,3081.6,0.34893483]
[1732120833554,0.07063999,3082.4,3081.6,0.3489348]
[1732120833761,0.04055737,3083.6,3081.6,0.3489348]
[1732120833762,0.04055737,3083.6,3081.8,0.3237]
[1732120833957,0.07064114,3083.5,3082.0,1.2383]
[1732120834332,0.04054822,3083.4,3082.0,1.2383]
[1732120834499,0.04054822,3083.4,3082.0,0.9146]
[1732120834669,0.07055469,3083.3,3082.0,0.9146]
[1732120835014,0.04055565,3083.2,3082.0,0.9146]
[1732120835500,0.07046822,3083.1,3082.0,0.9146]
[1732120835801,3.25237,3084.2,3081.3,0.17047561]
[1732120835802,0.04055564,3083.8,3082.2,0.9342]
[1732120835985,0.07042605,3083.0,3082.2,0.9342]
[1732120836294,0.04055564,3083.8,3082.2,0.9342]
[1732120836499,0.04055564,3083.8,3082.3,0.34891082]
[1732120836713,0.06620838,3083.7,3082.4,1.2579]
[1732120836873,0.06620838,3083.7,3082.6,0.3237]
[1732120837206,0.46493178,3084.4,3082.9,0.3237]
[1732120837561,0.06647055,3084.3,3082.9,0.3237]
[1732120837759,0.04053961,3084.2,3082.9,0.3237]
[1732120838000,0.06638413,3084.1,3082.9,0.3237]
[1732120838372,0.55,3084.0,3082.9,0.34889922]
[1732120838571,0.55,3084.0,3082.9,0.3237]
[1732120838777,0.55,3083.8,3082.9,0.34889868]
[1732120839410,0.06621618,3083.7,3082.9,0.34889868]
[1732120839615,0.06621618,3083.7,3082.8,0.8743]
[1732120840196,0.1067555,3083.7,3082.8,0.8743]
[1732120840488,0.55,3083.6,3082.8,0.8743]
[1732120840705,0.04054194,3083.5,3082.8,0.8743]
[1732120840873,0.10667557,3083.5,3082.8,0.8743]
[1732120841341,0.06613363,3083.5,3082.8,0.8743]
[1732120842115,0.55,3084.0,3082.8,0.8743]
[1732120842414,0.04054194,3084.1,3082.8,0.8743]
[1732120842415,0.55,3083.8,3082.8,0.8743]
[1732120842624,0.55,3083.6,3082.4,0.8998]
[1732120842803,0.55,3083.4,3081.9,0.8998]
[1732120842971,0.0405494,3083.5,3081.9,0.8998]
[1732120842972,0.55,3083.2,3081.9,0.8998]
[1732120843174,0.06595824,3083.1,3081.9,0.8998]
[1732120843376,0.55,3083.0,3081.9,0.8998]
[1732120843572,0.06587046,3082.9,3081.9,0.8998]
[1732120844292,0.06587046,3082.9,3082.0,0.02522225]
[1732120844489,0.06587046,3082.9,3082.1,0.861]
[1732120844685,0.55,3083.5,3082.1,0.861]
[1732120844923,0.55,3083.3,3082.1,0.861]
[1732120845075,0.04054783,3083.2,3082.1,0.861]
[1732120845284,0.55,3083.1,3082.1,0.861]
[1732120845588,0.55,3082.9,3082.1,0.861]
[1732120845990,0.06374162,3082.8,3082.1,0.861]
[1732120847230,0.04055066,3083.5,3082.1,0.861]
[1732120847578,3.24334,3083.3,3082.1,0.861]
[1732120847773,0.04055065,3083.2,3082.1,0.861]
[1732120847979,0.10446393,3083.2,3082.1,0.861]
[1732120849404,0.06391328,3083.2,3082.1,0.861]
[1732120849819,0.04055627,3083.1,3082.1,0.861]
[1732120849995,0.30405563,3083.0,3082.1,0.861]
[1732120850189,0.04055627,3082.9,3082.1,0.861]
[1732120850390,0.04055627,3082.9,3080.6,0.43471461]
[1732120850391,3.34806054,3082.9,3081.8,0.8799]
[1732120850918,3.0,3082.6,3081.8,0.8799]
[1732120851125,0.04056049,3082.5,3081.8,0.8799]
[1732120851325,0.10417176,3082.5,3081.8,0.8799]
[1732120852188,0.06361127,3082.5,3081.8,0.8799]